fUSD/lending_fUSD_20250401
["ID","MTS","AMOUNT","RATE_DAILY","PERIOD"]
[356958231,1743495042126,-4319.67386769,0.00036657,2]
[356958232,1743495042136,-2000.0,0.00036681,4]
[356958233,1743495042145,-165.25,0.00037,2]
[356958234,1743495042155,-1000.0,0.00037705,2]
[356958235,1743495042164,-451.43,0.00037812,2]
[356958236,1743495042174,-481.08274452,0.00038622,5]
[356958237,1743495042183,-150.43,0.00039178,2]
[356958238,1743495042192,-529.97340018,0.00039222,11]
[356958239,1743495042201,-2188.836128,0.00039301,2]
[356958240,1743495042215,-4319.67386769,0.00039322,2]
[356958241,1743495042230,-11299.5845977,0.0003999,3]
[356958242,1743495042240,-20000.0,0.0004,120]
[356958243,1743495042250,-451.43,0.00040076,2]
[356958244,1743495042261,-209.0,0.0004041,2]
[356958245,1743495042270,-7330.23389187,0.00041,10]
[356958246,1743495042280,-152.914622,0.00041,14]
[356958247,1743495042290,-151.0,0.00041,14]
[356958248,1743495042300,-450.185156,0.00041,14]
[356958249,1743495042310,-450.185156,0.00041,14]
[356958250,1743495042319,-151.0,0.00041,14]
[356958251,1743495042329,-151.0,0.00041,14]
[356958252,1743495042340,-151.0,0.00041,14]
[356958253,1743495042350,-153.098221,0.00041,14]
[356958254,1743495042359,-151.0,0.00041,14]
[356958255,1743495042369,-269.691545,0.00041,14]
[356958256,1743495042378,-151.0,0.00041,14]
[356958257,1743495042387,-165.22821,0.00041,14]
[356958258,1743495042399,-151.0,0.00041,14]
[356958259,1743495042410,-151.15,0.00041142,120]
[356958260,1743495042419,-1000.0,0.00041476,2]
[356958261,1743495042430,-158.7,0.00041534,2]
[356958262,1743495042440,-371.0,0.000417,30]
[356958263,1743495042449,-378.0,0.000417,30]
[356958264,1743495042459,-209.0,0.0004191,2]
[356958265,1743495042468,-11299.5845977,0.0004198,3]
[356958266,1743495042477,-4319.67386769,0.00041988,15]
[356958267,1743495042487,-151.0,0.0004199,14]
[356958268,1743495042496,-151.0,0.0004199,14]
[356958269,1743495042505,-151.0,0.0004199,14]
[356958270,1743495042514,-151.0,0.0004199,14]
[356958271,1743495042525,-151.0,0.0004199,14]
[356958272,1743495042534,-151.0,0.0004199,14]
[356958273,1743495042543,-152.656165,0.0004199,14]
[356958274,1743495042552,-151.0,0.0004199,14]
[356958275,1743495042561,-151.0,0.0004199,14]
[356958276,1743495042570,-156.811599,0.0004199,14]
[356958277,1743495042580,-181.723592,0.0004199,14]
[356958278,1743495042590,-151.0,0.0004199,14]
[356958279,1743495042601,-151.0,0.0004199,14]
[356958280,1743495042610,-151.0,0.0004199,14]
[356958281,1743495042620,-156.28014,0.0004199,14]
[356958282,1743495042632,-11299.5845977,0.0004199,3]
[356958283,1743495042642,-151.0,0.0004199,14]
[356958284,1743495042651,-20000.0,0.00042,120]
[356958285,1743495042661,-151.0,0.00042,14]
[356958286,1743495042671,-151.0,0.00042,14]
[356958287,1743495042681,-151.0,0.00042,14]
[356958288,1743495042693,-151.0,0.00042,14]
[356958289,1743495042703,-151.0,0.00042,14]
[356958291,1743495042713,-151.0,0.00042,14]
[356958292,1743495042723,-151.0,0.00042,14]
[356958294,1743495042736,-151.0,0.00042,14]
[356958296,1743495042745,-151.0,0.00042,14]
[356958298,1743495042754,-151.0,0.00042,14]
[356958299,1743495042765,-153.141692,0.00042,14]
[356958301,1743495042775,-151.0,0.00042,14]
[356958302,1743495042784,-151.0,0.00042,14]
[356958303,1743495042795,-151.0,0.00042,14]
[356958304,1743495042805,-205.604718,0.00042,14]
[356958305,1743495042815,-151.0,0.00042,14]
[356958306,1743495042825,-151.0,0.00042,14]
[356958307,1743495042834,-151.0,0.00042,14]
[356958308,1743495042845,-151.0,0.00042,14]
[356958309,1743495042855,-206.87667,0.00042,14]
[356958310,1743495042864,-151.0,0.00042,14]
[356958311,1743495042874,-151.0,0.00042,14]
[356958312,1743495042884,-151.0,0.00042,14]
[356958313,1743495042893,-151.0,0.00042,14]
[356958315,1743495042903,-338.447988,0.00042,14]
[356958316,1743495042912,-338.447988,0.00042,14]
[356958317,1743495042922,-151.0,0.00042,14]
[356958318,1743495042933,-551.536254,0.00042,14]
[356958319,1743495042942,-551.536254,0.00042,14]
[356958320,1743495042952,-152.456488,0.00042,14]
[356958321,1743495042961,-151.0,0.00042,14]
[356958322,1743495042971,-151.0,0.00042,14]
[356958329,1743495043141,-151.0,0.00042,14]
[356958330,1743495043151,-151.0,0.00042,14]
[356958331,1743495043161,-151.0,0.00042,14]
[356958332,1743495043170,-151.0,0.00042,14]
[356958333,1743495043179,-155.097505,0.00042,14]
[356958334,1743495043189,-310.75,0.00042086,2]
[356958335,1743495043199,-277.42,0.000423,2]
[356958336,1743495043208,-451.43,0.0004234,2]
[356958337,1743495043217,-2188.836128,0.00042415,15]
[356958338,1743495043227,-161.92,0.00042583,2]
[356958339,1743495043237,-151.442983,0.00042647,14]
[356958340,1743495043246,-151.0,0.00042647,14]
[356958341,1743495043255,-151.0,0.00042647,14]
[356958342,1743495043265,-450.185156,0.00042647,14]
[356958343,1743495043274,-450.185156,0.00042647,14]
[356958344,1743495043283,-151.0,0.00042647,14]
[356958345,1743495043293,-151.0,0.00042647,14]
[356958346,1743495043303,-264.45971,0.00042647,14]
[356958347,1743495043312,-151.0,0.00042647,14]
[356958348,1743495043322,-153.049903,0.00042647,14]
[356958349,1743495043332,-1429.167,0.00042647,2]
[356958350,1743495043341,-576.192,0.00042647,2]
[356958351,1743495043350,-1286.221,0.00042647,2]
[356958352,1743495043360,-795.0,0.00042647,2]
[356958353,1743495043369,-3307.066,0.00042647,2]
[356958354,1743495043379,-347.337,0.00042647,2]
[356958355,1743495043388,-1117.0,0.00042647,2]
[356958356,1743495043398,-150.43,0.0004274,2]
[356958357,1743495043408,-166.98144105,0.0004334,8]
[356958358,1743495043417,-209.0,0.0004342,2]
[356958359,1743495043427,-1960.56979396,0.00044355,120]
[356958360,1743495043436,-11299.5845977,0.00044594,3]
[356958361,1743495043446,-451.43,0.00044604,2]
[356958362,1743495043457,-4319.67386769,0.00044654,15]
[356958363,1743495043466,-209.0,0.0004493,30]
[356958364,1743495043475,-151.0,0.0004499,14]
[356958365,1743495043485,-151.0,0.0004499,14]
[356958366,1743495043494,-151.0,0.0004499,14]
[356958367,1743495043504,-151.0,0.0004499,14]
[356958368,1743495043513,-151.0,0.0004499,14]
[356958369,1743495043522,-151.0,0.0004499,14]
[356958370,1743495043531,-15000.0,0.00045,120]
[356958371,1743495043540,-151.0,0.00045,14]
[356958372,1743495043550,-159.714686,0.00045,14]
[356958373,1743495043558,-266.835488,0.00045,14]
[356958374,1743495043568,-151.0,0.00045,14]
[356958375,1743495043577,-151.0,0.00045,14]
[356958376,1743495043586,-151.0,0.00045,14]
[356958377,1743495043595,-11299.5845977,0.00045236,3]
[356958378,1743495043604,-1000.0,0.00045246,2]
[356958379,1743495043613,-500.0,0.00045479,120]
[356958380,1743495043623,-2188.836128,0.00045528,15]
[356958381,1743495043632,-857.45,0.00045647,2]
[356958382,1743495043641,-150.43,0.00046301,2]
[356958383,1743495043650,-209.0,0.0004643,30]
[356958384,1743495043659,-181.01,0.00046498,2]
[356958385,1743495043668,-151.0,0.00046858,14]
[356958386,1743495043678,-151.0,0.00046858,14]
[356958387,1743495043691,-194.982218,0.00046858,14]
[356958388,1743495043701,-151.0,0.00046858,14]
[356958389,1743495043710,-194.664377,0.00046858,14]
[356958390,1743495043719,-287.35973127,0.00046858,14]
[356958391,1743495043731,-151.0,0.00046858,14]
[356958392,1743495043740,-151.0,0.00046858,14]
[356958393,1743495043749,-338.447988,0.00046858,14]
[356958394,1743495043758,-338.447988,0.00046858,14]
[356958395,1743495043768,-151.0,0.00046858,14]
[356958396,1743495043777,-551.536254,0.00046858,14]
[356958397,1743495043786,-551.536254,0.00046858,14]
[356958398,1743495043795,-151.0,0.00046858,14]
[356958399,1743495043804,-151.0,0.00046858,14]
[356958400,1743495043813,-151.0,0.00046858,14]
[356958401,1743495043822,-151.0,0.00046858,14]
[356958402,1743495043831,-253.255986,0.00046858,14]
[356958403,1743495043840,-151.0,0.00046858,14]
[356958404,1743495043849,-451.43,0.00046868,2]
[356958405,1743495043858,-995.0,0.00047009,7]
[356958406,1743495043868,-4319.67386769,0.00047319,15]
[356958407,1743495043878,-1238.8547968,0.0004741,4]
[356958408,1743495043887,-443.48,0.00047434,30]
[356958409,1743495043896,-152.02,0.00047434,30]
[356958410,1743495043906,-164.72664768,0.00047446,28]
[356958411,1743495043916,-209.0,0.0004794,30]
[356958412,1743495043925,-506.14112894,0.0004794,120]
[356958413,1743495043935,-529.96380433,0.00048,120]
[356958414,1743495043945,-151.0,0.00048,14]
[356958415,1743495043954,-503.16758268,0.00048127,10]
[356958416,1743495043964,-11299.5845977,0.00048632,4]
[356958417,1743495043973,-151.6,0.00048632,2]
[356958418,1743495043984,-160.90391,0.00048632,14]
[356958419,1743495043993,-450.185156,0.00048632,14]
[356958420,1743495044003,-450.185156,0.00048632,14]
[356958421,1743495044012,-151.0,0.00048632,14]
[356958422,1743495044022,-151.0,0.00048632,14]
[356958423,1743495044031,-2188.836128,0.00048642,15]
[356958424,1743495044041,-151.0,0.0004879,14]
[356958425,1743495044050,-153.571833,0.0004879,14]
[356958426,1743495044059,-151.0,0.0004879,14]
[356958427,1743495044069,-151.0,0.0004879,14]
[356958428,1743495044078,-151.0,0.0004879,14]
[356958429,1743495044087,-153.36494,0.0004879,14]
[356958430,1743495044097,-151.0,0.0004879,14]
[356958431,1743495044107,-151.0,0.0004879,14]
[356958432,1743495044116,-446.48610923,0.000488,120]
[356958433,1743495044126,-500.1,0.000488,14]
[356958434,1743495044135,-1255.92089605,0.00048859,60]
[356958435,1743495044145,-641.17075531,0.00048869,60]
[356958436,1743495044154,-157.442389,0.0004887,14]
[356958437,1743495044164,-151.0,0.0004887,14]
[356958438,1743495044173,-151.0,0.0004887,14]
[356958439,1743495044183,-151.0,0.0004887,14]
[356958440,1743495044193,-169.54704,0.0004887,14]
[356958441,1743495044203,-153.75353,0.0004887,14]
[356958442,1743495044212,-151.0,0.0004887,14]
[356958443,1743495044221,-151.0,0.0004887,14]
[356958444,1743495044232,-151.0,0.0004887,14]
[356958445,1743495044242,-22599.1691954,0.0004887,4]
[356958446,1743495044251,-151.0,0.0004887,14]
[356958447,1743495044261,-158.7,0.00048877,2]
[356958448,1743495044271,-50000.0,0.0004888,120]
[356958449,1743495044280,-151.0,0.0004888,14]
[356958450,1743495044289,-153.983531,0.0004888,14]
[356958451,1743495044299,-151.0,0.0004888,14]
[356958452,1743495044309,-151.0,0.0004888,14]
[356958453,1743495044318,-151.0,0.0004888,14]
[356958454,1743495044328,-186.403155,0.0004888,14]
[356958455,1743495044338,-151.0,0.0004888,14]
[356958456,1743495044347,-151.0,0.0004888,14]
[356958457,1743495044356,-154.850334,0.0004888,14]
[356958458,1743495044366,-151.0,0.0004888,14]
[356958459,1743495044375,-151.0,0.0004888,14]
[356958460,1743495044385,-151.0,0.0004888,14]
[356958461,1743495044395,-151.0,0.0004888,14]
[356958462,1743495044405,-338.447988,0.0004888,14]
[356958463,1743495044414,-338.447988,0.0004888,14]
[356958464,1743495044423,-152.704866,0.0004888,14]
[356958465,1743495044433,-551.536254,0.0004888,14]
[356958466,1743495044442,-551.536254,0.0004888,14]
[356958467,1743495044451,-151.0,0.0004888,14]
[356958468,1743495044461,-151.0,0.0004888,14]
[356958469,1743495044470,-151.0,0.0004888,14]
[356958470,1743495044479,-155.25263,0.0004888,14]
[356958471,1743495044488,-151.0,0.0004888,14]
[356958472,1743495044498,-155.660916,0.0004888,14]
[356958473,1743495044506,-151.0,0.0004888,14]
[356958474,1743495044515,-213.516672,0.0004888,14]
[356958475,1743495044524,-153.43441,0.0004888,14]
[356958476,1743495044533,-151.625642,0.0004888,14]
[356958477,1743495044542,-450.185156,0.0004888,14]
[356958478,1743495044551,-450.185156,0.0004888,14]
[356958479,1743495044560,-151.0,0.0004888,14]
[356958480,1743495044569,-11299.5845977,0.0004899,4]
[356958481,1743495044578,-20000.0,0.00049,2]
[356958482,1743495044587,-151.0,0.00049,14]
[356958483,1743495044596,-151.0,0.00049,14]
[356958484,1743495044605,-151.0,0.00049,14]
[356958485,1743495044614,-451.43,0.00049132,2]
[356958486,1743495044623,-151.0,0.00049315,120]
[356958487,1743495044632,-151.0,0.00049315,120]
[356958488,1743495044642,-151.0,0.00049315,120]
[356958489,1743495044651,-151.0,0.00049315,120]
[356958490,1743495044660,-151.15,0.00049352,120]
[356958491,1743495044669,-209.0,0.0004945,30]
[356958492,1743495044678,-305.61609173,0.00049489,120]
[356958493,1743495044689,-11299.5845977,0.0004949,4]
[356958494,1743495044700,-9997.99199999,0.000495,7]
[356958495,1743495044710,-5000.0,0.00049575,120]
[356958496,1743495044718,-150.0,0.00049656,7]
[356958497,1743495044727,-150.0,0.00049675,7]
[356958498,1743495044737,-150.0,0.00049703,7]
[356958499,1743495044746,-150.0,0.00049774,7]
[356958500,1743495044755,-500.2,0.0004978,37]
[356958501,1743495044764,-217.066539,0.0004979,37]
[356958502,1743495044774,-150.0,0.00049821,7]
[356958503,1743495044783,-150.0,0.00049827,7]
[356958504,1743495044792,-150.0,0.00049844,7]
[356958505,1743495044801,-151.0,0.0004985,120]
[356958506,1743495044810,-151.0,0.0004985,120]
[356958507,1743495044819,-151.0,0.0004985,120]
[356958508,1743495044828,-151.0,0.0004985,120]
[356958509,1743495044837,-151.56321,0.0004985,120]
[356958510,1743495044846,-151.818993,0.0004985,120]
[356958511,1743495044855,-151.0,0.00049856,120]
[356958512,1743495044864,-153.273147,0.00049856,120]
[356958513,1743495044874,-300.986088,0.00049856,120]
[356958514,1743495044883,-177.546261,0.00049856,120]
[356958515,1743495044893,-151.0,0.00049856,120]
[356958516,1743495044903,-450.185156,0.00049856,120]
[356958517,1743495044913,-450.185156,0.00049856,120]
[356958518,1743495044922,-151.0,0.00049856,120]
[356958519,1743495044931,-11299.5845977,0.00049856,4]
[356958520,1743495044940,-151.0,0.0004986,120]
[356958521,1743495044950,-151.0,0.0004986,120]
[356958522,1743495044959,-151.0,0.0004986,120]
[356958523,1743495044970,-151.0,0.0004986,120]
[356958524,1743495044979,-151.0,0.0004986,120]
[356958525,1743495044988,-151.0,0.0004986,110]
[356958526,1743495044998,-151.0,0.0004986,120]
[356958527,1743495045007,-151.0,0.0004986,120]
[356958528,1743495045017,-338.447988,0.0004986,120]
[356958529,1743495045026,-338.447988,0.0004986,120]
[356958530,1743495045035,-551.536254,0.0004986,120]
[356958531,1743495045044,-151.0,0.0004986,120]
[356958532,1743495045054,-551.536254,0.0004986,120]
[356958533,1743495045063,-151.0,0.0004986,120]
[356958534,1743495045072,-157.918101,0.0004986,120]
[356958535,1743495045081,-450.185156,0.0004986,120]
[356958536,1743495045090,-450.185156,0.0004986,120]
[356958537,1743495045099,-151.0,0.0004986,120]
[356958538,1743495045108,-33898.753793,0.0004986,4]
[356958539,1743495045117,-21484.996321,0.0004986,4]
[356958540,1743495045126,-151.6,0.0004986,120]
[356958541,1743495045135,-150.43,0.00049863,120]
[356958542,1743495045144,-1978.2619617,0.00049865,2]
[356958543,1743495045153,-5226.2435818,0.00049866,2]
[356958544,1743495045162,-250.0,0.0004987,5]
[356958545,1743495045173,-74428.65882052,0.0004987,5]
[356958546,1743495045182,-526.15570517,0.0004987,5]
[356958547,1743495045191,-151.0,0.0004987,120]
[356958548,1743495045199,-151.0,0.0004987,120]
[356958549,1743495045208,-151.0,0.0004987,120]
[356958550,1743495045218,-151.0,0.0004987,120]
[356958551,1743495045227,-285.876342,0.0004987,120]
[356958552,1743495045236,-151.0,0.0004987,110]
[356958553,1743495045245,-151.0,0.0004987,120]
[356958554,1743495045254,-151.0,0.0004987,120]
[356958555,1743495045263,-338.447988,0.0004987,120]
[356958556,1743495045273,-338.447988,0.0004987,120]
[356958557,1743495045282,-551.536254,0.0004987,120]
[356958558,1743495045291,-293.134122,0.0004987,120]
[356958559,1743495045302,-551.536254,0.0004987,120]
[356958560,1743495045312,-151.0,0.0004987,120]
[356958561,1743495045321,-151.0,0.0004987,120]
[356958562,1743495045331,-151.0,0.0004987,120]
[356958563,1743495045340,-450.185156,0.0004987,120]
[356958564,1743495045349,-450.185156,0.0004987,120]
[356958565,1743495045359,-151.0,0.0004987,120]
[356958566,1743495045368,-11299.5845977,0.0004987,4]
[356958567,1743495045378,-10742.4981605,0.0004987,4]
[356958568,1743495045387,-151.0,0.0004988,120]
[356958569,1743495045396,-151.0,0.0004988,120]
[356958570,1743495045405,-151.0,0.0004988,120]
[356958571,1743495045414,-151.0,0.0004988,120]
[356958572,1743495045424,-11299.5845977,0.0004988,4]
[356958573,1743495045433,-10742.4981605,0.0004988,4]
[356958574,1743495045442,-151.0,0.0004989,120]
[356958575,1743495045451,-151.0,0.0004989,110]
[356958576,1743495045461,-151.0,0.0004989,110]
[356958577,1743495045470,-151.0,0.0004989,120]
[356958578,1743495045479,-151.0,0.0004989,120]
[356958579,1743495045489,-151.0,0.0004989,120]
[356958580,1743495045499,-151.0,0.0004989,120]
[356958581,1743495045509,-338.447988,0.0004989,120]
[356958582,1743495045520,-338.447988,0.0004989,120]
[356958583,1743495045531,-338.447988,0.0004989,120]
[356958584,1743495045540,-338.447988,0.0004989,120]
[356958585,1743495045550,-551.536254,0.0004989,120]
[356958586,1743495045559,-551.536254,0.0004989,120]
[356958587,1743495045568,-551.536254,0.0004989,120]
[356958588,1743495045578,-551.536254,0.0004989,120]
[356958589,1743495045587,-154.005275,0.0004989,120]
[356958590,1743495045596,-151.0,0.0004989,120]
[356958591,1743495045605,-151.0,0.0004989,120]
[356958592,1743495045614,-101696.261379,0.0004989,4]
[356958593,1743495045624,-128909.977926,0.0004989,4]
[356958594,1743495045633,-450.185156,0.0004989,120]
[356958595,1743495045643,-450.185156,0.0004989,120]
[356958596,1743495045652,-450.185156,0.0004989,120]
[356958597,1743495045661,-450.185165,0.0004989,120]
[356958598,1743495045671,-222.96072,0.0004989,120]
[356958599,1743495045680,-150.0,0.00049899,120]
[356958600,1743495045693,-180000.0,0.000499,30]
[356958601,1743495045703,-80000.0,0.000499,30]
[356958602,1743495045713,-151.0,0.000499,120]
[356958603,1743495045722,-151.0,0.000499,120]
[356958604,1743495045731,-151.0,0.000499,110]
[356958605,1743495045740,-151.0,0.000499,110]
[356958606,1743495045749,-151.0,0.000499,120]
[356958607,1743495045758,-151.0,0.000499,120]
[356958608,1743495045768,-151.0,0.000499,120]
[356958609,1743495045777,-173.70974,0.000499,120]
[356958610,1743495045786,-338.447988,0.000499,120]
[356958611,1743495045795,-338.447988,0.000499,120]
[356958612,1743495045804,-338.447988,0.000499,120]
[356958613,1743495045814,-338.447992,0.000499,120]
[356958614,1743495045823,-551.536254,0.000499,120]
[356958615,1743495045833,-551.536254,0.000499,120]
[356958616,1743495045843,-551.536254,0.000499,120]
[356958617,1743495045852,-551.536264,0.000499,120]
[356958618,1743495045861,-151.0,0.000499,120]
[356958619,1743495045871,-166.468055,0.000499,120]
[356958620,1743495045881,-151.0,0.000499,120]
[356958621,1743495045891,-150.0,0.00049902,30]
[356958622,1743495045901,-10742.4981605,0.00049975,4]
[356958623,1743495045913,-1255.92089605,0.00049979,90]
[356958624,1743495045925,-4319.67386769,0.00049985,15]
[356958625,1743495045935,-2025.04579436,0.0004999,2]
[356958626,1743495045945,-10742.4981605,0.0004999,4]
[356958627,1743495045955,-500.0,0.0005,120]
[356958628,1743495045964,-500.0,0.0005,120]
[356958629,1743495045974,-200.0,0.0005,120]
[356958630,1743495045984,-3000.0,0.0005,30]
[356958631,1743495045994,-264.0,0.0005,120]
[356958632,1743495046003,-21903.0,0.0005,120]
[356958633,1743495046013,-2651.81152243,0.00050255,35]
[356958634,1743495046024,-10742.4981605,0.00050608,4]
[356958635,1743495046034,-150.0,0.00050618,60]
[356958636,1743495046043,-150.0,0.00050618,60]
[356958637,1743495046052,-500.0,0.00050618,60]
[356958638,1743495046061,-156.9684744,0.00050618,60]
[356958639,1743495046071,-500.0,0.00050618,60]
[356958640,1743495046080,-6603.0,0.00050618,60]
[356958641,1743495046089,-500.0,0.00050618,60]
[356958642,1743495046099,-201.48549205,0.00050892,60]
[356958643,1743495046108,-150.0,0.00050892,60]
[356958644,1743495046117,-517.49669313,0.00050892,60]
[356958645,1743495046126,-815.41827857,0.00050892,60]
[356958646,1743495046135,-6603.0,0.00050892,60]
[356958647,1743495046145,-500.0,0.00050892,60]
[356958648,1743495046156,-209.0,0.0005096,30]
[356958649,1743495046165,-500.0,0.0005098,60]
[356958650,1743495046174,-250.41855285,0.00051166,60]
[356958651,1743495046184,-6603.0,0.00051166,60]
[356958652,1743495046344,-500.0,0.00051166,60]
[356958653,1743495046355,-150.0,0.00051269,120]
[356958654,1743495046366,-451.43,0.00051396,2]
[356958655,1743495046376,-10742.4981605,0.0005143,4]
[356958656,1743495046386,-6603.0,0.0005144,60]
[356958657,1743495046396,-500.0,0.0005144,60]
[356958658,1743495046405,-1128.37,0.000515,120]
[356958659,1743495046414,-6603.0,0.00051714,60]
[356958660,1743495046424,-500.0,0.00051714,60]
[356958661,1743495046434,-2188.836128,0.00051755,15]
[356958662,1743495046444,-10742.4981605,0.00051978,4]
[356958663,1743495046454,-6603.0,0.00051988,60]
[356958664,1743495046464,-831.41913596,0.00051988,60]
[356958665,1743495046474,-5000.0,0.00052,7]
[356958666,1743495046484,-151.0,0.0005211,120]
[356958667,1743495046495,-6603.0,0.00052262,60]
[356958668,1743495046506,-209.0,0.0005246,30]
[356958669,1743495046516,-10742.4981605,0.0005249,4]
[356958670,1743495046525,-4019.1448,0.000525,120]
[356958671,1743495046536,-6603.0,0.00052536,60]
[356958672,1743495046545,-150.0,0.00052639,120]
[356958673,1743495046555,-4319.67386769,0.00052651,15]
[356958674,1743495046564,-6603.0,0.0005281,60]
[356958675,1743495046573,-508.27122294,0.00052815,60]
[356958676,1743495046583,-10742.4981605,0.0005296,4]
[356958677,1743495046594,-225.64421695,0.0005298,30]
[356958678,1743495046603,-10742.4981605,0.0005298,4]
[356958679,1743495046614,-21484.996321,0.0005299,4]
[356958680,1743495046623,-64454.9889629,0.0005299,4]
[356958681,1743495046633,-21521.8893946,0.0005299,30]
[356958682,1743495046643,-49000.0,0.00053,53]
[356958683,1743495046652,-310532.29,0.00053,90]
[356958684,1743495046662,-1000.0,0.00053,120]
[356958685,1743495046671,-6603.0,0.00053084,60]
[356958686,1743495046681,-357.46044774,0.00053248,2]
[356958687,1743495046696,-6603.0,0.00053358,60]
[356958688,1743495046705,-1724.96,0.000534,2]
[356958689,1743495046715,-150.43,0.00053425,120]
[356958690,1743495046725,-6603.0,0.00053632,60]
[356958691,1743495046737,-451.43,0.0005366,2]
[356958692,1743495046748,-40505.56816969,0.0005379,120]
[356958693,1743495046758,-790.77,0.000538,2]
[356958694,1743495046770,-790.77,0.000538,2]
[356958695,1743495046781,-158.15,0.000538,2]
[356958696,1743495046791,-158.15,0.000538,2]
[356958697,1743495046801,-644.94,0.000538,2]
[356958698,1743495046812,-1724.96,0.000538,2]
[356958699,1743495046822,-1724.96,0.000538,2]
[356958700,1743495046832,-500.0,0.00053882,60]
[356958701,1743495046842,-6603.0,0.00053906,60]
[356958702,1743495046852,-209.0,0.0005397,30]
[356958703,1743495046862,-50000.0,0.00054,54]
[356958704,1743495046872,-165.38,0.00054009,120]
[356958705,1743495046882,-6603.0,0.0005418,60]
[356958706,1743495046892,-541.50251007,0.0005424,60]
[356958707,1743495046902,-818.08822812,0.00054246,120]
[356958708,1743495046912,-150.0,0.000543,120]
[356958709,1743495046922,-150.0,0.000543,120]
[356958710,1743495046934,-150.0,0.00054394,120]
[356958711,1743495046943,-790.77,0.000544,2]
[356958712,1743495046953,-158.15,0.000544,2]
[356958713,1743495046963,-1724.96,0.000544,2]
[356958714,1743495046973,-503.319228,0.00054416,120]
[356958715,1743495046983,-568.525441,0.00054416,120]
[356958716,1743495046994,-200.0,0.00054416,120]
[356958717,1743495047004,-367.0,0.00054418,30]
[356958718,1743495047014,-196.855732,0.00054443,30]
[356958719,1743495047026,-195.791653,0.00054443,30]
[356958720,1743495047035,-195.791653,0.00054443,30]
[356958721,1743495047045,-6603.0,0.00054454,60]
[356958722,1743495047054,-515.52343657,0.00054496,60]
[356958723,1743495047063,-3000.0,0.000545,120]
[356958724,1743495047073,-6603.0,0.00054728,60]
[356958725,1743495047082,-1707.347013,0.00054756,2]
[356958726,1743495047092,-186.0,0.00054767,120]
[356958727,1743495047101,-150.0,0.00054773,10]
[356958728,1743495047113,-150.0,0.00054793,15]
[356958729,1743495047122,-1115.39274201,0.00054794,5]
[356958730,1743495047132,-163.096428,0.00054794,120]
[356958731,1743495047141,-811.95,0.00054794,2]
[356958732,1743495047151,-500.0,0.00054794,120]
[356958733,1743495047160,-500.0,0.00054794,120]
[356958734,1743495047170,-500.0,0.00054794,60]
[356958735,1743495047180,-627.48,0.00054794,120]
[356958736,1743495047190,-500.0,0.00054794,120]
[356958737,1743495047199,-500.0,0.00054794,120]
[356958738,1743495047210,-565.38108648,0.00054794,120]
[356958739,1743495047220,-501.36936211,0.00054794,2]
[356958740,1743495047230,-1016.9,0.00054794,120]
[356958741,1743495047240,-500.0,0.00054794,120]
[356958742,1743495047250,-500.0,0.00054794,120]